[Event "Titled Tuesday Blitz May 23 Late 2023"]
[White "ArrestingPieces"]
[Black "Weetik, Vjacheslav"]
[BlackFideId "4153472"]
[WhiteElo "2490"]
[BlackElo "2469"]
[Result "1-0"]
[Round "08"]
[TimeControl "180+2"]
[Date "2023.05.23"]
[WhiteClock "0:00:36"]
[BlackClock "0:00:01"]

1. d4 {[%clk 0:03:00]}  Nf6 {[%clk 0:02:59]} 2. Nf3 {[%clk 0:03:01]}  e6 {[%clk 0:02:59]} 3. Bf4 {[%clk 0:03:01]}  d5 {[%clk 0:02:57]} 4. c3 {[%clk 0:03:00]}  c5 {[%clk 0:02:55]} 5. e3 {[%clk 0:03:01]}  Bd6 {[%clk 0:02:52]} 6. Nbd2 {[%clk 0:02:58]}  O-O {[%clk 0:02:51]} 7. Bg3 {[%clk 0:02:57]}  Qc7 {[%clk 0:02:50]} 8. Bd3 {[%clk 0:02:56]}  Nbd7 {[%clk 0:02:49]} 9. Bxd6 {[%clk 0:02:54]}  Qxd6 {[%clk 0:02:49]} 10. dxc5 {[%clk 0:02:55]}  Nxc5 {[%clk 0:02:47]} 11. Bc2 {[%clk 0:02:52]}  Qc7 {[%clk 0:02:34]} 12. Qe2 {[%clk 0:02:49]}  b6 {[%clk 0:02:33]} 13. O-O {[%clk 0:02:39]}  Ba6 {[%clk 0:02:32]} 14. c4 {[%clk 0:02:32]}  dxc4 {[%clk 0:02:11]} 15. Nxc4 {[%clk 0:02:16]}  Rac8 {[%clk 0:02:00]} 16. b3 {[%clk 0:02:10]}  Nce4 {[%clk 0:01:55]} 17. Rfc1 {[%clk 0:02:02]}  Bxc4 {[%clk 0:01:48]} 18. bxc4 {[%clk 0:01:59]}  Qxc4 {[%clk 0:01:47]} 19. Qxc4 {[%clk 0:01:55]}  Rxc4 {[%clk 0:01:48]} 20. Bxe4 {[%clk 0:01:55]}  Rxe4 {[%clk 0:01:45]} 21. a4 {[%clk 0:01:56]}  Nd5 {[%clk 0:01:44]} 22. a5 {[%clk 0:01:52]}  h6 {[%clk 0:01:28]} 23. Nd4 {[%clk 0:01:44]}  bxa5 {[%clk 0:00:58]} 24. Rxa5 {[%clk 0:01:45]}  Ra8 {[%clk 0:00:58]} 25. h3 {[%clk 0:01:31]}  Nf6 {[%clk 0:00:40]} 26. Rc7 {[%clk 0:01:18]}  a6 {[%clk 0:00:40]} 27. Rc6 {[%clk 0:01:16]}  g6 {[%clk 0:00:34]} 28. g3 {[%clk 0:01:16]}  Nd5 {[%clk 0:00:26]} 29. Kg2 {[%clk 0:01:02]}  Ne7 {[%clk 0:00:17]} 30. Rc7 {[%clk 0:01:00]}  Nd5 {[%clk 0:00:17]} 31. Rb7 {[%clk 0:00:57]}  Nf6 {[%clk 0:00:08]} 32. Kf3 {[%clk 0:00:48]}  e5 {[%clk 0:00:08]} 33. Nc6 {[%clk 0:00:48]}  Rc4 {[%clk 0:00:06]} 34. Nxe5 {[%clk 0:00:48]}  Rc2 {[%clk 0:00:04]} 35. Nxf7 {[%clk 0:00:48]}  Rf8 {[%clk 0:00:04]} 36. Nxh6+ {[%clk 0:00:42]}  Kh8 {[%clk 0:00:04]} 37. Rf7 {[%clk 0:00:40]}  Rxf7 {[%clk 0:00:04]} 38. Nxf7+ {[%clk 0:00:41]}  Kg7 {[%clk 0:00:04]} 39. Ne5 {[%clk 0:00:38]}  Rc7 {[%clk 0:00:02]} 40. Rxa6 {[%clk 0:00:37]}  Nd5 {[%clk 0:00:01]} 41. Rxg6+ {[%clk 0:00:36]} 1-0


[Site "https://www.chess.com"]

[Event "Titled Tuesday Blitz May 23 Late 2023"]
[White "Przybylski, Wojciech"]
[Black "Tejedor Fuente, Enrique"]
[WhiteFideId "1117599"]
[BlackFideId "2299100"]
[WhiteElo "2222"]
[BlackElo "2496"]
[Result "1/2-1/2"]
[Round "08"]
[TimeControl "180+2"]
[Date "2023.05.23"]
[WhiteClock "0:00:03"]
[BlackClock "0:00:01"]

1. e4 {[%clk 0:02:57]}  d6 {[%clk 0:02:53]} 2. d4 {[%clk 0:02:56]}  e5 {[%clk 0:02:52]} 3. Nf3 {[%clk 0:02:55]}  Nd7 {[%clk 0:02:51]} 4. Bc4 {[%clk 0:02:54]}  c6 {[%clk 0:02:51]} 5. Nc3 {[%clk 0:02:49]}  Be7 {[%clk 0:02:48]} 6. dxe5 {[%clk 0:02:47]}  dxe5 {[%clk 0:02:49]} 7. Ng5 {[%clk 0:02:45]}  Bxg5 {[%clk 0:02:47]} 8. Qh5 {[%clk 0:02:44]}  g6 {[%clk 0:02:36]} 9. Qxg5 {[%clk 0:02:44]}  Qxg5 {[%clk 0:02:35]} 10. Bxg5 {[%clk 0:02:43]}  f6 {[%clk 0:02:36]} 11. Be3 {[%clk 0:02:42]}  b5 {[%clk 0:02:36]} 12. Be2 {[%clk 0:02:36]}  a5 {[%clk 0:02:35]} 13. a4 {[%clk 0:02:35]}  b4 {[%clk 0:02:35]} 14. Nb1 {[%clk 0:02:34]}  Ba6 {[%clk 0:02:34]} 15. Nd2 {[%clk 0:02:30]}  Bxe2 {[%clk 0:02:31]} 16. Kxe2 {[%clk 0:02:30]}  Ne7 {[%clk 0:02:32]} 17. Nc4 {[%clk 0:02:27]}  c5 {[%clk 0:02:29]} 18. Nd6+ {[%clk 0:02:20]}  Kf8 {[%clk 0:02:28]} 19. Rad1 {[%clk 0:02:07]}  Nc6 {[%clk 0:02:18]} 20. c3 {[%clk 0:01:48]}  Ke7 {[%clk 0:02:12]} 21. Nb5 {[%clk 0:01:43]}  Rhc8 {[%clk 0:02:06]} 22. Rd5 {[%clk 0:01:39]}  bxc3 {[%clk 0:01:53]} 23. bxc3 {[%clk 0:01:27]}  Na7 {[%clk 0:01:53]} 24. Rhd1 {[%clk 0:01:23]}  Rd8 {[%clk 0:00:55]} 25. Nxa7 {[%clk 0:01:20]}  Rxa7 {[%clk 0:00:54]} 26. Bxc5+ {[%clk 0:01:17]}  Nxc5 {[%clk 0:00:54]} 27. Rxd8 {[%clk 0:01:16]}  Nxa4 {[%clk 0:00:53]} 28. Rc8 {[%clk 0:01:04]}  Nb6 {[%clk 0:00:51]} 29. Rc6 {[%clk 0:01:02]}  Nd7 {[%clk 0:00:51]} 30. Ra1 {[%clk 0:00:41]}  a4 {[%clk 0:00:49]} 31. Ra3 {[%clk 0:00:41]}  f5 {[%clk 0:00:47]} 32. Rc4 {[%clk 0:00:37]}  Nb6 {[%clk 0:00:43]} 33. Rb4 {[%clk 0:00:32]}  Ra6 {[%clk 0:00:44]} 34. c4 {[%clk 0:00:28]}  Kd6 {[%clk 0:00:41]} 35. Kd3 {[%clk 0:00:27]}  fxe4+ {[%clk 0:00:36]} 36. Kc3 {[%clk 0:00:27]}  g5 {[%clk 0:00:28]} 37. Rb5 {[%clk 0:00:27]}  Nd7 {[%clk 0:00:27]} 38. Kb4 {[%clk 0:00:26]}  Rc6 {[%clk 0:00:20]} 39. Rd5+ {[%clk 0:00:24]}  Ke6 {[%clk 0:00:19]} 40. Rxa4 {[%clk 0:00:17]}  Rxc4+ {[%clk 0:00:19]} 41. Kxc4 {[%clk 0:00:16]}  Nb6+ {[%clk 0:00:18]} 42. Kb5 {[%clk 0:00:14]}  Nxd5 {[%clk 0:00:16]} 43. Ra6+ {[%clk 0:00:13]}  Kf5 {[%clk 0:00:16]} 44. Kc5 {[%clk 0:00:13]}  Nf4 {[%clk 0:00:15]} 45. Ra8 {[%clk 0:00:06]}  Ke6 {[%clk 0:00:11]} 46. Re8+ {[%clk 0:00:06]}  Kf6 {[%clk 0:00:07]} 47. g3 {[%clk 0:00:05]}  Nd3+ {[%clk 0:00:06]} 48. Kd5 {[%clk 0:00:06]}  Kf7 {[%clk 0:00:06]} 49. Ra8 {[%clk 0:00:05]}  Nxf2 {[%clk 0:00:06]} 50. Kxe5 {[%clk 0:00:05]}  Kg6 {[%clk 0:00:04]} 51. Kd4 {[%clk 0:00:05]}  Kh5 {[%clk 0:00:03]} 52. Ra7 {[%clk 0:00:05]}  h6 {[%clk 0:00:03]} 53. Ra6 {[%clk 0:00:05]}  Ng4 {[%clk 0:00:02]} 54. Kxe4 {[%clk 0:00:05]}  Nxh2 {[%clk 0:00:02]} 55. Kf5 {[%clk 0:00:05]}  Ng4 {[%clk 0:00:02]} 56. Re6 {[%clk 0:00:05]}  Nf2 {[%clk 0:00:01]} 57. Re2 {[%clk 0:00:05]}  Nh3 {[%clk 0:00:01]} 58. Rh2 {[%clk 0:00:04]}  g4 {[%clk 0:00:02]} 59. Re2 {[%clk 0:00:04]}  Ng5 {[%clk 0:00:02]} 60. Re1 {[%clk 0:00:04]}  Nh3 {[%clk 0:00:02]} 61. Rd1 {[%clk 0:00:03]}  Ng5 {[%clk 0:00:02]} 62. Rh1+ {[%clk 0:00:03]}  Nh3 {[%clk 0:00:02]} 63. Rf1 {[%clk 0:00:03]}  Nf2 {[%clk 0:00:01]} 64. Kf6 {[%clk 0:00:03]}  Ne4+ {[%clk 0:00:01]} 65. Kg7 {[%clk 0:00:03]}  Nxg3 {[%clk 0:00:02]} 66. Rg1 {[%clk 0:00:03]}  Ne4 {[%clk 0:00:01]} 67. Kf7 {[%clk 0:00:03]}  Kg5 {[%clk 0:00:02]} 68. Ke6 {[%clk 0:00:04]}  h5 {[%clk 0:00:02]} 69. Ke5 {[%clk 0:00:04]}  Nd2 {[%clk 0:00:02]} 70. Rd1 {[%clk 0:00:03]}  Nf3+ {[%clk 0:00:02]} 71. Ke4 {[%clk 0:00:03]}  h4 {[%clk 0:00:03]} 72. Rd5+ {[%clk 0:00:04]}  Kg6 {[%clk 0:00:02]} 73. Kf4 {[%clk 0:00:04]}  Nh2 {[%clk 0:00:02]} 74. Rd6+ {[%clk 0:00:04]}  Kh5 {[%clk 0:00:02]} 75. Rd5+ {[%clk 0:00:04]}  Kh6 {[%clk 0:00:02]} 76. Rd6+ {[%clk 0:00:04]}  Kh5 {[%clk 0:00:02]} 77. Rd8 {[%clk 0:00:05]}  g3 {[%clk 0:00:02]} 78. Rh8+ {[%clk 0:00:05]}  Kg6 {[%clk 0:00:01]} 79. Rg8+ {[%clk 0:00:04]}  Kf7 {[%clk 0:00:01]} 80. Rxg3 {[%clk 0:00:03]}  hxg3 {[%clk 0:00:01]} 81. Kxg3 {[%clk 0:00:03]} 1/2-1/2


[Site "https://www.chess.com"]

[Event "Titled Tuesday Blitz May 23 Late 2023"]
[White "Goroshkov, Maksym"]
[Black "Kielinkei"]
[WhiteFideId "14142716"]
[WhiteElo "2322"]
[BlackElo "2464"]
[Result "1-0"]
[Round "08"]
[TimeControl "180+2"]
[Date "2023.05.23"]
[WhiteClock "0:01:25"]
[BlackClock "0:00:00"]

1. e4 {[%clk 0:02:56]}  c5 {[%clk 0:03:00]} 2. d4 {[%clk 0:02:56]}  cxd4 {[%clk 0:03:00]} 3. c3 {[%clk 0:02:56]}  Nf6 {[%clk 0:03:00]} 4. e5 {[%clk 0:02:57]}  Nd5 {[%clk 0:03:01]} 5. Bc4 {[%clk 0:02:57]}  e6 {[%clk 0:02:56]} 6. cxd4 {[%clk 0:02:56]}  d6 {[%clk 0:02:54]} 7. exd6 {[%clk 0:02:55]}  Bxd6 {[%clk 0:02:50]} 8. Nf3 {[%clk 0:02:56]}  O-O {[%clk 0:02:48]} 9. O-O {[%clk 0:02:54]}  Nc6 {[%clk 0:02:45]} 10. Nc3 {[%clk 0:02:54]}  Be7 {[%clk 0:02:27]} 11. Be3 {[%clk 0:02:51]}  b6 {[%clk 0:02:16]} 12. Bxd5 {[%clk 0:02:41]}  exd5 {[%clk 0:02:16]} 13. Ne5 {[%clk 0:02:41]}  Nxe5 {[%clk 0:02:07]} 14. dxe5 {[%clk 0:02:41]}  Bb7 {[%clk 0:02:05]} 15. Rc1 {[%clk 0:02:39]}  Bc5 {[%clk 0:01:59]} 16. Nb5 {[%clk 0:02:27]}  Bxe3 {[%clk 0:01:50]} 17. fxe3 {[%clk 0:02:26]}  Ba6 {[%clk 0:01:48]} 18. a4 {[%clk 0:02:24]}  Bxb5 {[%clk 0:01:43]} 19. axb5 {[%clk 0:02:25]}  Qd7 {[%clk 0:01:39]} 20. Rc6 {[%clk 0:02:21]}  Rac8 {[%clk 0:01:29]} 21. Qc2 {[%clk 0:02:14]}  a6 {[%clk 0:01:17]} 22. Rc1 {[%clk 0:02:10]}  Rce8 {[%clk 0:01:00]} 23. bxa6 {[%clk 0:02:06]}  Rxe5 {[%clk 0:00:57]} 24. Rc8 {[%clk 0:02:04]}  Ree8 {[%clk 0:00:47]} 25. Rxe8 {[%clk 0:01:56]}  Rxe8 {[%clk 0:00:48]} 26. Qc6 {[%clk 0:01:51]}  Qe7 {[%clk 0:00:39]} 27. h3 {[%clk 0:01:35]}  Qxe3+ {[%clk 0:00:37]} 28. Kh1 {[%clk 0:01:35]}  Qe6 {[%clk 0:00:22]} 29. a7 {[%clk 0:01:26]}  Qxc6 {[%clk 0:00:12]} 30. Rxc6 {[%clk 0:01:27]}  d4 {[%clk 0:00:03]} 31. Rxb6 {[%clk 0:01:26]}  d3 {[%clk 0:00:00]} 32. Rb8 {[%clk 0:01:25]} 1-0


[Site "https://www.chess.com"]

[Event "Titled Tuesday Blitz May 23 Late 2023"]
[White "Vadim_Galchenko"]
[Black "Eugene, Floryan"]
[BlackFideId "20694784"]
[WhiteElo "2429"]
[BlackElo "2369"]
[Result "0-1"]
[Round "08"]
[TimeControl "180+2"]
[Date "2023.05.23"]
[WhiteClock "0:00:00"]
[BlackClock "0:00:09"]

1. e4 {[%clk 0:03:00]}  c5 {[%clk 0:02:58]} 2. a3 {[%clk 0:03:00]}  Nf6 {[%clk 0:02:51]} 3. e5 {[%clk 0:02:59]}  Nd5 {[%clk 0:02:51]} 4. Nc3 {[%clk 0:02:59]}  Nxc3 {[%clk 0:02:50]} 5. dxc3 {[%clk 0:02:58]}  Nc6 {[%clk 0:02:50]} 6. Nf3 {[%clk 0:02:57]}  e6 {[%clk 0:02:49]} 7. Bf4 {[%clk 0:02:54]}  h6 {[%clk 0:02:47]} 8. h4 {[%clk 0:02:54]}  b6 {[%clk 0:02:46]} 9. Qd2 {[%clk 0:02:52]}  Bb7 {[%clk 0:02:45]} 10. Rh3 {[%clk 0:02:51]}  Qc7 {[%clk 0:02:45]} 11. h5 {[%clk 0:02:47]}  O-O-O {[%clk 0:02:44]} 12. O-O-O {[%clk 0:02:47]}  Rg8 {[%clk 0:02:35]} 13. Rg3 {[%clk 0:02:46]}  Ne7 {[%clk 0:02:27]} 14. Bd3 {[%clk 0:02:40]}  c4 {[%clk 0:02:13]} 15. Be2 {[%clk 0:02:32]}  Nf5 {[%clk 0:02:13]} 16. Rg4 {[%clk 0:02:31]}  d5 {[%clk 0:02:02]} 17. exd6 {[%clk 0:02:22]}  Bxd6 {[%clk 0:02:02]} 18. Bxd6 {[%clk 0:02:22]}  Rxd6 {[%clk 0:02:01]} 19. Qe1 {[%clk 0:02:21]}  b5 {[%clk 0:01:57]} 20. Rxd6 {[%clk 0:02:19]}  Qxd6 {[%clk 0:01:56]} 21. Nd4 {[%clk 0:02:19]}  Nxd4 {[%clk 0:01:53]} 22. Rxd4 {[%clk 0:02:20]}  Qe5 {[%clk 0:01:51]} 23. g3 {[%clk 0:02:17]}  Rd8 {[%clk 0:01:47]} 24. Rxd8+ {[%clk 0:02:14]}  Kxd8 {[%clk 0:01:47]} 25. Qd2+ {[%clk 0:02:15]}  Qd5 {[%clk 0:01:46]} 26. Qe3 {[%clk 0:02:12]}  a6 {[%clk 0:01:39]} 27. Qd4 {[%clk 0:02:06]}  e5 {[%clk 0:01:26]} 28. Qxd5+ {[%clk 0:02:03]}  Bxd5 {[%clk 0:01:27]} 29. Kd2 {[%clk 0:02:03]}  Ke7 {[%clk 0:01:25]} 30. Ke3 {[%clk 0:02:01]}  f5 {[%clk 0:01:23]} 31. f4 {[%clk 0:02:01]}  Kf6 {[%clk 0:01:20]} 32. Bd1 {[%clk 0:01:56]}  Be4 {[%clk 0:01:18]} 33. Kd2 {[%clk 0:01:56]}  exf4 {[%clk 0:01:09]} 34. gxf4 {[%clk 0:01:56]}  g6 {[%clk 0:01:10]} 35. b3 {[%clk 0:01:51]}  gxh5 {[%clk 0:01:07]} 36. Bxh5 {[%clk 0:01:51]}  Ke6 {[%clk 0:01:06]} 37. Be2 {[%clk 0:01:47]}  Kd5 {[%clk 0:01:05]} 38. Bh5 {[%clk 0:01:43]}  Bg2 {[%clk 0:01:03]} 39. Ke3 {[%clk 0:01:42]}  Bh3 {[%clk 0:00:57]} 40. Bf7+ {[%clk 0:01:38]}  Kc5 {[%clk 0:00:56]} 41. b4+ {[%clk 0:01:15]}  Kd6 {[%clk 0:00:56]} 42. Kf2 {[%clk 0:01:12]}  Bg4 {[%clk 0:00:56]} 43. Kg3 {[%clk 0:01:10]}  Bd1 {[%clk 0:00:52]} 44. Kh4 {[%clk 0:01:09]}  Bxc2 {[%clk 0:00:28]} 45. Kh5 {[%clk 0:01:07]}  Ke7 {[%clk 0:00:28]} 46. Bg8 {[%clk 0:01:00]}  Kf8 {[%clk 0:00:24]} 47. Be6 {[%clk 0:01:00]}  Kg7 {[%clk 0:00:24]} 48. Bc8 {[%clk 0:01:00]}  Bd1+ {[%clk 0:00:25]} 49. Kh4 {[%clk 0:01:00]}  Kg6 {[%clk 0:00:23]} 50. Bxa6 {[%clk 0:01:00]}  Ba4 {[%clk 0:00:23]} 51. Bc8 {[%clk 0:00:59]}  Bc2 {[%clk 0:00:18]} 52. Bd7 {[%clk 0:00:58]}  Ba4 {[%clk 0:00:18]} 53. Be8+ {[%clk 0:00:55]}  Kg7 {[%clk 0:00:17]} 54. Kg3 {[%clk 0:00:52]}  Kf8 {[%clk 0:00:16]} 55. Bc6 {[%clk 0:00:47]}  Ke7 {[%clk 0:00:15]} 56. Kh4 {[%clk 0:00:43]}  Kd6 {[%clk 0:00:16]} 57. Bf3 {[%clk 0:00:41]}  Bc2 {[%clk 0:00:13]} 58. Kh5 {[%clk 0:00:40]}  Be4 {[%clk 0:00:13]} 59. Be2 {[%clk 0:00:39]}  Kd5 {[%clk 0:00:14]} 60. Kxh6 {[%clk 0:00:39]}  Bg2 {[%clk 0:00:14]} 61. Kg5 {[%clk 0:00:37]}  Ke4 {[%clk 0:00:14]} 62. Bh5 {[%clk 0:00:12]}  Kd3 {[%clk 0:00:12]} 63. Be8 {[%clk 0:00:12]}  Be4 {[%clk 0:00:10]} 64. Bxb5 {[%clk 0:00:12]}  Kxc3 {[%clk 0:00:11]} 65. Ba4 {[%clk 0:00:05]}  Kb2 {[%clk 0:00:11]} 66. b5 {[%clk 0:00:05]}  Kxa3 {[%clk 0:00:12]} 67. Bd1 {[%clk 0:00:06]}  Kb2 {[%clk 0:00:11]} 68. b6 {[%clk 0:00:06]}  c3 {[%clk 0:00:09]} 69. b7 {[%clk 0:00:05]}  Bxb7 {[%clk 0:00:09]} 70. Kxf5 {[%clk 0:00:05]}  Bf3 {[%clk 0:00:07]} 71. Ba4 {[%clk 0:00:04]}  Bc6 {[%clk 0:00:07]} 72. Bd1 {[%clk 0:00:05]}  Bd5 {[%clk 0:00:08]} 73. Ba4 {[%clk 0:00:00]}  Bb3 {[%clk 0:00:09]} 0-1


[Site "https://www.chess.com"]

[Event "Titled Tuesday Blitz May 23 Late 2023"]
[White "Kirillov, Dmitry"]
[Black "Sourath Biswas"]
[WhiteFideId "34180572"]
[BlackFideId "35091484"]
[WhiteElo "2161"]
[BlackElo "2171"]
[Result "1-0"]
[Round "08"]
[TimeControl "180+2"]
[Date "2023.05.23"]
[WhiteClock "0:01:01"]
[BlackClock "0:00:00"]

1. e4 {[%clk 0:03:00]}  c6 {[%clk 0:02:59]} 2. d4 {[%clk 0:02:59]}  d5 {[%clk 0:03:00]} 3. Nc3 {[%clk 0:03:00]}  dxe4 {[%clk 0:03:00]} 4. Nxe4 {[%clk 0:03:01]}  Nf6 {[%clk 0:03:00]} 5. Nxf6+ {[%clk 0:03:02]}  exf6 {[%clk 0:03:01]} 6. c3 {[%clk 0:03:02]}  Bd6 {[%clk 0:03:01]} 7. Bd3 {[%clk 0:03:02]}  O-O {[%clk 0:03:01]} 8. Qc2 {[%clk 0:03:02]}  Re8+ {[%clk 0:03:02]} 9. Ne2 {[%clk 0:03:03]}  h5 {[%clk 0:03:03]} 10. Be3 {[%clk 0:03:03]}  Nd7 {[%clk 0:03:02]} 11. O-O-O {[%clk 0:03:03]}  Nf8 {[%clk 0:03:03]} 12. Kb1 {[%clk 0:03:04]}  Be6 {[%clk 0:03:03]} 13. c4 {[%clk 0:03:04]}  Rc8 {[%clk 0:03:00]} 14. a3 {[%clk 0:03:05]}  Bb8 {[%clk 0:02:08]} 15. Nc3 {[%clk 0:02:56]}  b5 {[%clk 0:01:14]} 16. cxb5 {[%clk 0:02:48]}  cxb5 {[%clk 0:01:08]} 17. Bxb5 {[%clk 0:02:44]}  Re7 {[%clk 0:00:57]} 18. d5 {[%clk 0:02:05]}  Bg4 {[%clk 0:00:52]} 19. Rc1 {[%clk 0:02:01]}  Be5 {[%clk 0:00:46]} 20. Qd3 {[%clk 0:01:53]}  g6 {[%clk 0:00:36]} 21. Ka1 {[%clk 0:01:43]}  Bf5 {[%clk 0:00:26]} 22. Qd2 {[%clk 0:01:40]}  Qa5 {[%clk 0:00:22]} 23. Bc6 {[%clk 0:01:37]}  Rec7 {[%clk 0:00:11]} 24. Nb5 {[%clk 0:01:31]}  Qxd2 {[%clk 0:00:06]} 25. Bxd2 {[%clk 0:01:32]}  Re7 {[%clk 0:00:06]} 26. Bb4 {[%clk 0:01:32]}  a6 {[%clk 0:00:02]} 27. Bxe7 {[%clk 0:01:31]}  axb5 {[%clk 0:00:02]} 28. Bxb5 {[%clk 0:01:09]}  Rb8 {[%clk 0:00:02]} 29. a4 {[%clk 0:01:09]}  Nd7 {[%clk 0:00:00]} 30. Rhe1 {[%clk 0:01:01]} 1-0


[Site "https://www.chess.com"]

[Event "Titled Tuesday Blitz May 23 Late 2023"]
[White "Debray, Christopher"]
[Black "Adewumi, Tanitoluwa"]
[WhiteFideId "630810"]
[BlackFideId "30966396"]
[WhiteElo "2340"]
[BlackElo "2573"]
[Result "0-1"]
[Round "08"]
[TimeControl "180+2"]
[Date "2023.05.23"]
[WhiteClock "0:01:12"]
[BlackClock "0:00:15"]

1. e4 {[%clk 0:03:00]}  c5 {[%clk 0:02:55]} 2. Nf3 {[%clk 0:03:01]}  e6 {[%clk 0:02:55]} 3. d4 {[%clk 0:03:00]}  cxd4 {[%clk 0:02:55]} 4. Nxd4 {[%clk 0:03:01]}  Nc6 {[%clk 0:02:55]} 5. Nc3 {[%clk 0:03:02]}  Qc7 {[%clk 0:02:54]} 6. g3 {[%clk 0:03:01]}  a6 {[%clk 0:02:53]} 7. Bg2 {[%clk 0:03:02]}  d6 {[%clk 0:02:53]} 8. O-O {[%clk 0:03:02]}  Be7 {[%clk 0:02:54]} 9. Re1 {[%clk 0:03:01]}  Bd7 {[%clk 0:02:53]} 10. Nd5 {[%clk 0:02:59]}  exd5 {[%clk 0:02:50]} 11. exd5 {[%clk 0:03:00]}  Ne5 {[%clk 0:02:22]} 12. f4 {[%clk 0:02:56]}  Ng6 {[%clk 0:02:20]} 13. c3 {[%clk 0:02:44]}  Nf6 {[%clk 0:02:18]} 14. h4 {[%clk 0:02:40]}  h5 {[%clk 0:01:55]} 15. f5 {[%clk 0:02:39]}  Ne5 {[%clk 0:01:45]} 16. Bg5 {[%clk 0:02:36]}  O-O-O {[%clk 0:01:38]} 17. Qb3 {[%clk 0:02:27]}  Rhe8 {[%clk 0:01:23]} 18. c4 {[%clk 0:02:25]}  Kb8 {[%clk 0:01:06]} 19. Rac1 {[%clk 0:02:14]}  Nfg4 {[%clk 0:00:56]} 20. Bxe7 {[%clk 0:02:01]}  Rxe7 {[%clk 0:00:57]} 21. Nc6+ {[%clk 0:01:58]}  Bxc6 {[%clk 0:00:54]} 22. dxc6 {[%clk 0:01:57]}  Nxc6 {[%clk 0:00:44]} 23. Red1 {[%clk 0:01:29]}  Na5 {[%clk 0:00:35]} 24. Qc3 {[%clk 0:01:26]}  Qc5+ {[%clk 0:00:23]} 25. Qd4 {[%clk 0:01:21]}  Re1+ {[%clk 0:00:20]} 26. Bf1 {[%clk 0:01:19]}  Qxd4+ {[%clk 0:00:17]} 27. Rxd4 {[%clk 0:01:20]}  Rxc1 {[%clk 0:00:17]} 28. b4 {[%clk 0:01:18]}  Nc6 {[%clk 0:00:16]} 29. Rd2 {[%clk 0:01:12]}  Ne3 {[%clk 0:00:15]} 0-1


[Site "https://www.chess.com"]

[Event "Titled Tuesday Blitz May 23 Late 2023"]
[White "Melian, Juan Sebastian"]
[Black "Mickiewicz, Piotr"]
[WhiteFideId "3706575"]
[BlackFideId "1114891"]
[WhiteElo "2092"]
[BlackElo "2246"]
[Result "0-1"]
[Round "08"]
[TimeControl "180+2"]
[Date "2023.05.23"]
[WhiteClock "0:00:03"]
[BlackClock "0:00:47"]

1. d4 {[%clk 0:02:33]}  Nf6 {[%clk 0:02:56]} 2. c3 {[%clk 0:02:33]}  d5 {[%clk 0:02:52]} 3. Nf3 {[%clk 0:02:33]}  c5 {[%clk 0:02:49]} 4. Bg5 {[%clk 0:02:30]}  Nc6 {[%clk 0:02:44]} 5. Be3 {[%clk 0:02:30]}  a5 {[%clk 0:02:17]} 6. Nbd2 {[%clk 0:02:06]}  cxd4 {[%clk 0:02:05]} 7. Nxd4 {[%clk 0:02:02]}  e5 {[%clk 0:02:04]} 8. Nxc6 {[%clk 0:02:02]}  bxc6 {[%clk 0:02:04]} 9. Bg5 {[%clk 0:01:56]}  Qb6 {[%clk 0:01:57]} 10. Qc1 {[%clk 0:01:43]}  a4 {[%clk 0:01:52]} 11. g3 {[%clk 0:01:15]}  Bc5 {[%clk 0:01:49]} 12. e3 {[%clk 0:01:15]}  Ng4 {[%clk 0:01:47]} 13. h3 {[%clk 0:01:08]}  Nxf2 {[%clk 0:01:46]} 14. Kxf2 {[%clk 0:01:07]}  h6 {[%clk 0:01:47]} 15. Nf3 {[%clk 0:00:30]}  hxg5 {[%clk 0:01:42]} 16. Nxe5 {[%clk 0:00:30]}  Rh6 {[%clk 0:01:35]} 17. Be2 {[%clk 0:00:14]}  Rf6+ {[%clk 0:01:32]} 18. Nf3 {[%clk 0:00:14]}  Ra7 {[%clk 0:01:24]} 19. Kg2 {[%clk 0:00:13]}  Bxe3 {[%clk 0:01:22]} 20. Qc2 {[%clk 0:00:13]}  Re7 {[%clk 0:01:15]} 21. Bd3 {[%clk 0:00:12]}  g4 {[%clk 0:01:06]} 22. hxg4 {[%clk 0:00:13]}  Bxg4 {[%clk 0:01:06]} 23. Raf1 {[%clk 0:00:12]}  Bh6 {[%clk 0:01:03]} 24. Rh4 {[%clk 0:00:08]}  Bxf3+ {[%clk 0:01:03]} 25. Rxf3 {[%clk 0:00:09]}  Rxf3 {[%clk 0:01:02]} 26. Kxf3 {[%clk 0:00:09]}  Qg1 {[%clk 0:00:47]} 27. Rxa4 {[%clk 0:00:06]}  Re3+ {[%clk 0:00:46]} 28. Kg4 {[%clk 0:00:03]}  Qxg3+ {[%clk 0:00:47]} 0-1


[Site "https://www.chess.com"]

[Event "Titled Tuesday Blitz May 23 Late 2023"]
[White "Ollier, Pablo"]
[Black "Smiechu"]
[WhiteFideId "652318"]
[WhiteElo "2569"]
[BlackElo "2372"]
[Result "1-0"]
[Round "08"]
[TimeControl "180+2"]
[Date "2023.05.23"]
[WhiteClock "0:00:46"]
[BlackClock "0:00:47"]

1. d4 {[%clk 0:03:00]}  Nf6 {[%clk 0:02:56]} 2. c4 {[%clk 0:03:00]}  c5 {[%clk 0:02:56]} 3. d5 {[%clk 0:03:01]}  e6 {[%clk 0:02:57]} 4. Nc3 {[%clk 0:03:01]}  exd5 {[%clk 0:02:57]} 5. cxd5 {[%clk 0:03:02]}  d6 {[%clk 0:02:58]} 6. g3 {[%clk 0:03:02]}  g6 {[%clk 0:02:58]} 7. Bg2 {[%clk 0:03:03]}  Bg7 {[%clk 0:02:59]} 8. Nf3 {[%clk 0:03:03]}  O-O {[%clk 0:03:00]} 9. O-O {[%clk 0:03:04]}  Re8 {[%clk 0:03:00]} 10. Bf4 {[%clk 0:03:04]}  Ne4 {[%clk 0:03:00]} 11. Nxe4 {[%clk 0:03:04]}  Rxe4 {[%clk 0:03:01]} 12. Nd2 {[%clk 0:03:05]}  Rxf4 {[%clk 0:02:58]} 13. gxf4 {[%clk 0:03:06]}  Bxb2 {[%clk 0:02:58]} 14. Rb1 {[%clk 0:03:05]}  Bd4 {[%clk 0:02:51]} 15. e3 {[%clk 0:02:55]}  Bg7 {[%clk 0:02:51]} 16. e4 {[%clk 0:02:47]}  b5 {[%clk 0:02:38]} 17. e5 {[%clk 0:02:25]}  a6 {[%clk 0:02:22]} 18. Re1 {[%clk 0:02:10]}  Ra7 {[%clk 0:02:13]} 19. e6 {[%clk 0:01:43]}  Re7 {[%clk 0:02:07]} 20. f5 {[%clk 0:01:30]}  gxf5 {[%clk 0:02:05]} 21. Qh5 {[%clk 0:01:30]}  fxe6 {[%clk 0:01:55]} 22. dxe6 {[%clk 0:01:30]}  Qf8 {[%clk 0:01:45]} 23. Bd5 {[%clk 0:01:22]}  Bb7 {[%clk 0:01:44]} 24. Bxb7 {[%clk 0:01:12]}  Rxb7 {[%clk 0:01:44]} 25. Nf3 {[%clk 0:01:04]}  Nc6 {[%clk 0:01:00]} 26. Kh1 {[%clk 0:00:47]}  Ne5 {[%clk 0:00:55]} 27. Rg1 {[%clk 0:00:46]}  Nxf3 {[%clk 0:00:51]} 28. Qxf3 {[%clk 0:00:46]}  Kh8 {[%clk 0:00:47]} 29. Qxb7 {[%clk 0:00:46]} 1-0


[Site "https://www.chess.com"]